Cogmind - Beta 14 @@@ ROGUE MODE // 2024.08.17 @ 16:12:52 Player: youngster Result: Destroyed by 8R-AWN with 8R-AWN's Boregun Performance ------------- Evolutions (1) 500 Regions Visited (5) 1000 Robots Destroyed (85) 425 Value Destroyed (1596) 1596 Prototype IDs (37) 740 Alien Tech Used (0) 0 Bonus (314) 314 TOTAL SCORE: 4575 Bonus ------- Follower Combat Kills 14 Aligned with FarCom 300 Cogmind --------- Core Integrity 0/400 Matter 343/450 Energy 90/100 System Corruption 8% Temperature Cool (0) Movement Treading (240) Ox1 Location -9/Exiles Parts ------- > --- POWER (1) -------- (None) > --- PROPULSION (2) --- Light Treads Light Treads > --- UTILITY (4) ------ High-capacity Storage Unit Large Matter Pod > --- WEAPON (2) ------- Assault Rifle Assault Rifle > --- INVENTORY (20) --- Light Treads Large Matter Pod (38) High-capacity Matter Pod (200) Seismic Detector Light EM Pulse Cannon Assault Rifle Rocket Launcher Rocket Launcher Datajack Maul Peak State ------------ > --- POWER ------------ Light Nuclear Core > --- PROPULSION ------- Light Treads Compact Wheel > --- UTILITY ---------- High-capacity Storage Unit Seismic Detector Cloak of Protection Light Armor Plating > --- WEAPON ----------- Datajack Maul > --- INVENTORY -------- Light Ion Engine Fission Core Fission Core Light Treads Light Treads Light Treads Light Treads Light Treads High-capacity Matter Pod Light Armor Plating Light EM Pulse Cannon Assault Rifle Assault Rifle Assault Rifle Assault Rifle Assault Rifle Autogun Rocket Launcher Rocket Launcher [Rating: 22] Favorites ----------- Power Ion Engine Engine Ion Engine Power Core Light Nuclear Core Propulsion Light Treads Treads Light Treads Wheel Compact Wheel Utility High-capacity Storage Unit Device Seismic Detector Storage High-capacity Storage Unit Protection Light Armor Plating Weapon Assault Rifle Energy Gun EM Pulse Gun Energy Cannon Light EM Pulse Cannon Ballistic Gun Assault Rifle Launcher Rocket Launcher Special Weapon Mining Laser Impact Weapon Maul Special Melee Weapon Datajack Build | -11 -10 -10 -9 -9 -9 ------- Run | Yrd Mat Min Mat Min Exi Slots Evolved 2 | . . . 2 . . Power . | . . . . . . Propulsion . | . . . . . . Utility 2 | . . . 2 . . Weapon . | . . . . . . Parts Attached 127 | 7 28 21 45 7 19 Power 9 | 1 2 2 3 . 1 Engine 7 | 1 2 1 2 . 1 Core 2 | . . 1 1 . . Reactor . | . . . . . . Propulsion 21 | 2 7 2 6 . 4 Treads 20 | 2 7 2 5 . 4 Leg . | . . . . . . Wheel 1 | . . . 1 . . Hover . | . . . . . . Flight . | . . . . . . Utility 41 | 2 8 11 15 1 4 Device 32 | 1 7 11 11 1 1 Storage 5 | 1 1 . 1 . 2 Processor . | . . . . . . Hackware . | . . . . . . Protection 4 | . . . 3 . 1 Artifact . | . . . . . . Weapon 56 | 2 11 6 21 6 10 Energy Gun 4 | 1 2 . 1 . . Energy Cannon 6 | . . . 6 . . Ballistic Gun 36 | 1 9 5 10 4 7 Ballistic Cannon . | . . . . . . Launcher 5 | . . . 2 2 1 Special Weapon 1 | . . 1 . . . Impact Weapon 3 | . . . 2 . 1 Slashing Weapon . | . . . . . . Piercing Weapon . | . . . . . . Special Melee Weapon 1 | . . . . . 1 Unidentified Prototypes . | . . . . . . Corrupted Parts 4 | . 1 . . . 3 System Corruption 6 | . 1 . . . 5 Parts Lost 24 | . . 2 12 . 10 Power 5 | . . 1 2 . 2 Propulsion 4 | . . . 2 . 2 Utility 8 | . . . 4 . 4 Weapon 7 | . . 1 4 . 2 Highest Loss Streak 9 | . . 1 8 . 9 To Critical Strikes 6 | . . . . . 6 Average Slot Usage (%) 98 | . 98 99 93 100 98 Engine 8 | . 13 12 7 . 1 Core 3 | . . 1 3 11 9 Treads 21 | . 27 28 16 11 12 Wheel 3 | . . . 5 11 9 Device 16 | . 13 14 19 22 20 Storage 12 | . 14 14 11 11 11 Protection 4 | . . . 8 11 10 Energy Gun 1 | . 5 . . . . Ballistic Gun 19 | . 21 27 14 21 3 Impact Weapon 1 | . . . 2 . 9 Special Melee Weapon 1 | . . . . . 9 Peak Build Rating 22 | 7 9 11 16 18 22 Average Rating 11 | 5 8 9 13 15 16 On Entrance 9 | . 7 9 11 16 15 Naked Turns . | . . . . . . Heaviest Build 64 | 14 50 50 61 57 64 Greatest Support 40 | 40 40 40 40 16 16 Greatest Overweight (x) 14 | . 14 1 3 3 3 Average Overweight (x) 1 | . . 1 2 3 3 Largest Inventory Capacity 20 | 8 20 20 20 20 20 Average Capacity 19 | 7 19 20 20 20 20 Most Carried 20 | 5 20 20 20 20 20 Average Carried 18 | 3 17 19 18 19 18 Final Capacity 20 | 8 20 20 20 20 20 Final Carried 20 | 5 20 19 20 20 10 Class Distribution -------------------- 64% | Mutant 35% | Scavenger-Mutant Dominant Class ---------------- Mutant | -10/Materials Mutant | -10/Mines Scavenger-Mutant | -9/Materials Scavenger-Mutant | -9/Mines Scavenger-Mutant | -9/Exiles Resources | -11 -10 -10 -9 -9 -9 ----------- Run | Yrd Mat Min Mat Min Exi Matter Collected 2728 | 281 507 580 859 165 336 Remotely 93 | . 93 . . . . Salvage Created 2672 | 129 544 354 1490 154 1 Parts 184 | 7 50 24 83 20 . Haulers Intercepted 6 | . 2 . 4 . . Recyclers Shooed 3 | . 1 . 2 . . Parts Field Recycled . | . . . . . . Retrieved Matter . | . . . . . . Parts Self-Destructed . | . . . . . . Prevented . | . . . . . . Kills | -11 -10 -10 -9 -9 -9 ------- Run | Yrd Mat Min Mat Min Exi Combat Hostiles Destroyed 57 | . 11 10 28 6 2 Melee 1 | . . . 1 . . Guns 34 | . 6 10 16 2 . Cannons 5 | . . . 5 . . AOE 16 | . 5 . 5 4 2 Classes Destroyed 11 | 2 6 . 2 . 1 Worker 2 | . 1 . . 1 . Builder 5 | . 4 . . 1 . Tunneler 8 | 2 1 1 . 4 . Hauler 6 | . 2 . 4 . . Recycler 5 | 1 1 . 3 . . Watcher 4 | . 3 . 1 . . Swarmer 27 | . 9 4 8 6 . Grunt 22 | . 2 6 14 . . Brawler 1 | . . . 1 . . Sentry 5 | . . . 5 . . Assembled 2 | . . . . . 2 Best Kill Streak 6 | 3 5 2 6 5 2 Combat Bots Only 5 | . 3 2 5 3 2 Max Kills in Single Turn 4 | 1 4 1 3 3 1 Gunslinging . | . . . . . . Exploded 3 | . 3 . 3 2 1 Melee 1 | . . . 1 . . Uniques/NPCs Destroyed . | . . . . . . Combat | -11 -10 -10 -9 -9 -9 -------- Run | Yrd Mat Min Mat Min Exi Hostile Shots Fired 323 | . 35 61 145 7 75 Missed 65 | . 12 11 30 1 11 Damage Taken 3579 | . 232 604 1519 76 1148 Core 522 | . 28 78 234 32 150 Absorbed by Shields . | . . . . . . Regen/Repaired (Parts) 136 | . 136 . . . . Core Remaining (%) 78 | 100 . 57 . . . Volleys Fired 231 | 11 40 44 95 9 32 Largest 2 | 2 2 2 2 2 2 Hottest 76 | 60 60 40 76 40 43 Shots Fired 445 | 22 81 89 176 17 60 Gun 394 | 22 81 89 130 15 57 Cannon 42 | . . . 42 . . Launcher 9 | . . . 4 2 3 Special . | . . . . . . Kinetic 360 | 11 61 89 127 15 57 Thermal . | . . . . . . Explosive 9 | . . . 4 2 3 Electromagnetic 76 | 11 20 . 45 . . Robot Hit Streak 26 | 7 11 26 21 14 18 Robot Miss Streak 3 | 2 3 3 3 . 3 Penetration Max . | . . . . . . Secondary Targets 2 | . 1 . 1 . . Max Gunslinging Chain 1 | . 1 . 1 . . Shots Hit Robots 309 | 15 48 64 118 11 53 Core Hits 140 | 6 28 27 57 12 10 Critical Kills 2 | . 1 . 1 . . Critical Parts Destroyed 1 | . . . 1 . . Critical Strikes 5 | . 1 . 3 . 1 Destroy 2 | . 1 . . . 1 Corrupt 1 | . . . 1 . . Smash 2 | . . . 2 . . Melee Attacks 12 | . . . 8 . 4 Impact 8 | . . . 8 . . Slashing . | . . . . . . Piercing . | . . . . . . Sneak Attacks 5 | . . . 1 . 4 Combat Hostiles 1 | . . . 1 . . Follow-up Attacks . | . . . . . . Damage Inflicted 5389 | 153 947 700 2323 460 806 Guns 3336 | 153 607 696 1097 131 652 Cannons 641 | . . . 641 . . Explosions 1241 | . 314 . 452 329 146 Melee 131 | . . . 131 . . Ramming 40 | . 26 4 2 . 8 Kinetic 3101 | 87 472 696 1063 131 652 Thermal 460 | . 314 . 146 . . Explosive 781 | . . . 306 329 146 Electromagnetic 876 | 66 135 . 675 . . Impact 131 | . . . 131 . . Slashing . | . . . . . . Piercing . | . . . . . . Highest Corruption 8 | . 2 2 3 3 8 Average Corruption 2 | . 1 2 3 3 3 Corruption Purged . | . . . . . . Corruption Blocked . | . . . . . . Effects 91 | . 11 23 19 17 21 Message Errors 22 | . 1 7 7 3 4 Matter Fused 17 | . 3 5 3 4 2 Heat Flow Errors 12 | . 1 1 4 3 3 Energy Discharges 12 | . 1 3 2 3 3 Parts Fused 4 | . 1 2 . . 1 Data Loss (minor) 10 | . 1 3 1 2 3 Data Loss (major) 6 | . 2 1 1 . 2 Misfires 4 | . 1 1 . 1 1 Alerts 4 | . . . 1 1 2 Overload Shots . | . . . . . . Overflow Damage 136 | . 26 . 94 5 11 Projectiles . | . . . . . . Explosions 44 | . 26 . 2 5 11 Melee 92 | . . . 92 . . Knockbacks . | . . . . . . Impact . | . . . . . . Kinetic . | . . . . . . Secondary . | . . . . . . Self-Inflicted Damage 103 | . 32 . 39 32 . Shots 3 | . 1 . 1 1 . Rammed 13 | . 5 2 2 . 4 Targets Rammed 13 | . 5 2 2 . 4 Kicked . | . . . . . . Crushed . | . . . . . . Highest Temperature 293 | 40 234 156 293 257 246 Average Temperature 56 | 16 49 24 63 99 57 Received Heat Transfer 870 | . 9 291 570 . . Effects 1 | . . . 1 . . Interference 1 | . . . 1 . . Siege Activations . | . . . . . . Robots Corrupted 1 | . . . 1 . . Combat Hostiles 1 | . . . 1 . . Parts Fried 3 | 1 . . 2 . . Impact Corruptions 2 | . . . 2 . . Robots Melted . | . . . . . . Combat Hostiles . | . . . . . . Parts Melted . | . . . . . . Heat Transferred 550 | . 400 . 150 . . Parts Sabotaged . | . . . . . . Parts Stolen . | . . . . . . Parts Stripped . | . . . . . . Power Chain Reactions 6 | . 3 . 3 . . Alert | -11 -10 -10 -9 -9 -9 ------- Run | Yrd Mat Min Mat Min Exi Peak Influence 369 | 15 222 130 369 329 . Initial 143 | . 9 . 11 143 . Average 96 | 7 65 42 164 179 . Maximum Alert Level 1 | . 1 . 1 1 . Low Security (%) 83 | 100 93 100 65 55 . Level 1 16 | . 6 . 34 44 . Level 2 . | . . . . . . Level 3 . | . . . . . . Level 4 . | . . . . . . Level 5 . | . . . . . . High Security . | . . . . . . Max Security . | . . . . . . Squads Dispatched 3 | . . . 3 . . Investigation 2 | . . . 2 . . Extermination . | . . . . . . Reinforcement 1 | . . . 1 . . Assault . | . . . . . . Garrison . | . . . . . . Intercept . | . . . . . . Searches Triggered . | . . . . . . Construction Impeded . | . . . . . . Haulers Reinforced . | . . . . . . Active Scanning Responses . | . . . . . . Cargo Convoy Interrupts . | . . . . . . Stealth | -11 -10 -10 -9 -9 -9 --------- Run | Yrd Mat Min Mat Min Exi Distress Signals 3 | . . . 3 . . Communications Jammed . | . . . . . . Distress Signals . | . . . . . . Times Spotted 84 | . 18 14 38 4 10 Peak Tracking Total 12 | . 3 3 6 3 12 Tactical Retreats 13 | . 3 2 4 . 4 Traps | -11 -10 -10 -9 -9 -9 ------- Run | Yrd Mat Min Mat Min Exi Traps Triggered 7 | . 6 . 1 . . Indirectly . | . . . . . . Trap Hack Attempts . | . . . . . . Triggered . | . . . . . . Disarmed . | . . . . . . Reprogrammed . | . . . . . . Reused 1 | . . . . . 1 Traps Extracted . | . . . . . . Installed 1 | . . . . . 1 Triggered . | . . . . . . Most Traps Carried 4 | . . . . 4 4 Machines | -11 -10 -10 -9 -9 -9 ---------- Run | Yrd Mat Min Mat Min Exi Machines Disabled 6 | . 1 . 3 1 1 Max in Single Turn 1 | . 1 . 1 1 1 Machines Repaired . | . . . . . . Machines Dismantled . | . . . . . . Machines Sabotaged . | . . . . . . Overloaded Fab Kills . | . . . . . . Hacking | -11 -10 -10 -9 -9 -9 --------- Run | Yrd Mat Min Mat Min Exi Machines Accessed 20 | . 10 1 7 . 2 Terminals 15 | . 8 1 6 . . Fabricators . | . . . . . . Repair Stations 2 | . 1 . 1 . . Recycling Units 1 | . 1 . . . . Scanalyzers . | . . . . . . Garrison Access . | . . . . . . Total Hacks 58 | . 31 3 22 . 2 Successful 30 | . 15 . 13 . 2 Failed 27 | . 16 3 8 . . Catastrophic 2 | . 1 . 1 . . Database Lockouts 1 | . . . 1 . . Manual 39 | . 21 2 15 . 1 Terminals 45 | . 24 3 18 . . Fabricators . | . . . . . . Repair Stations 8 | . 4 . 4 . . Recycling Units 3 | . 3 . . . . Scanalyzers . | . . . . . . Garrison Access . | . . . . . . Terminal Hacks 9 | . 3 . 4 . 2 Record 1 | . . . . . 1 Part Schematic 1 | . 1 . . . . Robot Schematic 1 | . . . 1 . . Unreport Threat 1 | . . . 1 . . Locate Traps 4 | . 2 . 2 . . Derelict Proto ID Bank 1 | . . . . . 1 Fabricator Hacks . | . . . . . . Repair Station Hacks 6 | . 4 . 2 . . Scan Component 4 | . 2 . 2 . . Repair 2 | . 2 . . . . Recycling Unit Hacks 1 | . 1 . . . . Retrieve Components 1 | . 1 . . . . Scanalyzer . | . . . . . . Garrison Access Hacks . | . . . . . . Unauthorized Hacks 14 | . 7 . 7 . . Terminals 14 | . 7 . 7 . . Operators 2 | . 1 . 1 . . Skim 12 | . 6 . 6 . . Fabricators . | . . . . . . Repair Stations . | . . . . . . Recycling Units . | . . . . . . Scanalyzers . | . . . . . . Garrison Access . | . . . . . . Data Cores Recovered . | . . . . . . Used . | . . . . . . Hacking Detections 15 | . 9 1 5 . . Full Trace Events 2 | . 1 . 1 . . Feedback Events . | . . . . . . Feedback Blocked . | . . . . . . Robot Schematics Acquired 1 | . . . 1 . . Robots Built . | . . . . . . Authchips . | . . . . . . Time . | . . . . . . Total Robot Build Rating . | . . . . . . Part Schematics Acquired 1 | . 1 . . . . Parts Built . | . . . . . . Authchips . | . . . . . . Time . | . . . . . . Total Part Build Rating . | . . . . . . Parts Repaired 2 | . 2 . . . . Time 52 | . 52 . . . . Parts Recycled . | . . . . . . Recycled Matter . | . . . . . . Retrieved Matter . | . . . . . . Retrieved Components 4 | . 4 . . . . Parts Scanalyzed . | . . . . . . Part Schematics Acquired . | . . . . . . Parts Damaged . | . . . . . . Bothacking | -11 -10 -10 -9 -9 -9 ------------ Run | Yrd Mat Min Mat Min Exi Used RIF Installer . | . . . . . . Robots Hacked 4 | . . . . . 4 Non-combat 3 | . . . . . 3 Combat 1 | . . . . . 1 Robot Hacks Applied 4 | . . . . . 4 parse_system 4 | . . . . . 4 Relay Couplers Released . | . . . . . . Fabnet Peak Effective % . | . . . . . . Robots Rewired . | . . . . . . Allies Hacked . | . . . . . . Hacks Repelled . | . . . . . . Allies | -11 -10 -10 -9 -9 -9 -------- Run | Yrd Mat Min Mat Min Exi Total Allies 3 | . . 3 . . . Largest Group 3 | . . 3 . . . Highest-Rated Group 40 | . . 40 . . . Highest-Rated Ally 16 | . . 16 . . . Total Orders . | . . . . . . Ally Attacks 10 | . . 10 . . . Total Damage 109 | . . 109 . . . Kills 4 | . . 4 . . . Allies Corrupted . | . . . . . . Allies Melted . | . . . . . . Intel | -11 -10 -10 -9 -9 -9 ------- Run | Yrd Mat Min Mat Min Exi Robot Analysis Total . | . . . . . . Derelict Logs Recovered 5 | . . 3 . 2 . Drone Launches . | . . . . . . Drone Recoveries . | . . . . . . Exploration | -11 -10 -10 -9 -9 -9 ------------- Run | Yrd Mat Min Mat Min Exi Turns Passed 7775 | 137 2314 1756 1551 885 1132 Spaces Moved 3385 | 59 880 646 559 584 657 Core 4 | 2 2 . . . . Treads 1816 | 57 878 646 235 . . Legs . | . . . . . . Wheels 1565 | . . . 324 584 657 Hover . | . . . . . . Flight . | . . . . . . Fastest Speed 50 | 50 160 240 130 145 145 Average Speed 193 | 156 235 240 184 145 145 Slowest Speed 750 | 160 750 240 240 145 145 Overloaded Moves . | . . . . . . Propulsion Burnouts . | . . . . . . Robots Hopped . | . . . . . . Cave-ins Triggered . | . . . . . . Exploration Rate (%) 67 | 5 98 99 46 94 65 Regions Visited 5 Branch Regions 3 Pre-discovered Areas 5 | . 2 . 1 1 1 Known Exits Taken 3 | . 1 1 1 . . Unknown Exits Taken 2 | 1 . . . 1 . Scrap Searched 2 | . . 1 . 1 . Spaces Dug 33 | . . . 24 9 . Terrain Destroyed 80 | . 8 . 38 21 13 Melee 6 | . . . 6 . . Projectile . | . . . . . . AOE 74 | . 8 . 32 21 13 Terrain Rammed . | . . . . . . Walls Destroyed . | . . . . . . Machines Disabled . | . . . . . . Actions | -11 -10 -10 -9 -9 -9 --------- Run | Yrd Mat Min Mat Min Exi Total 4142 | 81 1030 765 879 608 779 Wait 263 | . 54 43 136 . 30 Move 3380 | 58 879 645 558 583 657 Hop . | . . . . . . Pick Up 63 | 5 18 3 18 3 16 Fast Attach 28 | 7 11 . 7 2 1 Attach 26 | . 3 2 11 . 10 Detach 4 | . 1 . 2 . 1 Swap 73 | . 14 19 27 5 8 Drop 48 | . 5 7 15 6 15 Fire 231 | 11 40 44 95 9 32 Melee 12 | . . . 8 . 4 Ram . | . . . . . . Kick . | . . . . . . Crush 13 | . 5 2 2 . 4 Escape Stasis . | . . . . . . Rewire . | . . . . . . Trap 1 | . . . . . 1 Miscellaneous . | . . . . . . Route ------- -11/Scrapyard -10/Materials (discovered 5 exits: *Mat x3 / *Min x2) -10/Mines (discovered 3 exits: *Mat x2 / [*Sub]) -9/Materials (discovered 5 exits: *Mat x3 / *Min x2) -9/Mines (discovered 3 exits: *Mat x2 / *Exi) -9/Exiles (discovered 1 exit: [*Min]) History --------- Turn | Location | Event 31 | -11/Scrapyard | Discovered new exit (range 15) 138 | -11/Scrapyard | Entered Materials 229 | -10/Materials | Discovered new exit (range 9) 311 | -10/Materials | Build established: Mutant 543 | -10/Materials | Discovered new exit (range 16) 760 | -10/Materials | Discovered new exit (range 13) 937 | -10/Materials | Learned location of 2 exits from Subcaves 988 | -10/Materials | Learned location of 1 exit from Storage 1030 | -10/Materials | Learned location of Subcaves (-10) 1064 | -10/Materials | Identified exit to Materials 1064 | -10/Materials | Identified exit to Mines 1088 | -10/Materials | Learned Storage emergency access door positions 1100 | -10/Materials | Learned 2 Storage zone layouts 1102 | -10/Materials | Learned 4 Recycling zone layouts 1136 | -10/Materials | Learned Storage stockpile data 1166 | -10/Materials | Learned Storage trap positions 1207 | -10/Materials | Learned location of Recycling (-8) 2363 | -10/Materials | Repaired Lgt. Treads 2389 | -10/Materials | Repaired Lgt. Treads 2452 | -10/Materials | Entered Mines 2456 | -10/Mines | Met a Derelict bent on vengeance 2773 | -10/Mines | Assisted by bots powering up and referring to "LRC-V3" 3183 | -10/Mines | Discovered exit to Materials (range 5) 3461 | -10/Mines | Discovered new exit (range 13) 3477 | -10/Mines | Found a damaged Exp. Sensor Array with a note attached 3483 | -10/Mines | Found Prototype Device 3758 | -10/Mines | Discovered exit to Materials (range 8) 4055 | -10/Mines | Learned 4 Materials zone layouts 4208 | -10/Mines | Entered Materials 4208 | -9/Materials | Evolved 2 slots: Utility x2 4209 | -9/Materials | Identified exit to Mines 4209 | -9/Materials | Identified exit to Materials 4608 | -9/Materials | Build established: Scavenger-Mutant 4989 | -9/Materials | Lost 8 parts (1p2n3u2w) 5220 | -9/Materials | Core integrity fell below 50% 5333 | -9/Materials | Build established: Mutant 5354 | -9/Materials | Central database locked down 5425 | -9/Materials | Discovered exit to Materials (range 8) 5617 | -9/Materials | Learned location of 1 exit from Storage 5653 | -9/Materials | Learned 4 Recycling zone layouts 5693 | -9/Materials | Learned Storage terminal intel 5710 | -9/Materials | Loaded intel: 12 terminal locations 5759 | -9/Materials | Entered Mines 5785 | -9/Mines | Learned Materials stockpile data 5801 | -9/Mines | Deemed a non-threat by the Exiles lab entrance 5801 | -9/Mines | Discovered new exit (range 5) 5819 | -9/Mines | Learned location of Storage (-8) 5865 | -9/Mines | Learned Materials terminal intel 5879 | -9/Mines | Found a hidden stash of uninstalled traps 5936 | -9/Mines | Build established: Scavenger-Mutant 6226 | -9/Mines | Received a Rocket Launcher from a helpful Derelict 6428 | -9/Mines | A weapon hastily lodged in a ceiling crevice suddenly fell to the ground 6644 | -9/Mines | Entered Exiles 6681 | -9/Exiles | Met 8R-AWN 6766 | -9/Exiles | Met EX-HEX 6873 | -9/Exiles | Met EX-BIN 6891 | -9/Exiles | Aligned with FarCom system 6893 | -9/Exiles | Given EX-Vault access code 6926 | -9/Exiles | Opened EX-Vault 6937 | -9/Exiles | Found Cloak of Protection 6948 | -9/Exiles | Found AWS/Thermal 6981 | -9/Exiles | Warned to stay clear of 0b10 Research branches 7054 | -9/Exiles | Met EX-DEC 7091 | -9/Exiles | Learned location of Zion (-7) 7130 | -9/Exiles | Discovered new exit (range 14) 7508 | -9/Exiles | Warned about trapping Exiles lab 7592 | -9/Exiles | Attacked by the Exiles 7736 | -9/Exiles | Core integrity fell below 20% 7776 | -9/Exiles | Destroyed by 8R-AWN with 8R-AWN's Boregun Last Messages --------------- 07759_ Penetrated by HV Slug. 07760_ Slammed into 8R-AWN. 07764_ Penetrated by HV Slug. 07764_ HV Slug penetrates Machine. 07764_ Penetrated by HV Slug. 07764_ HV Slug penetrates Machine. 07764_ Slammed into 8R-AWN. 07768_ Penetrated by HV Slug. 07768_ HV Slug penetrates Wall. 07768_ Penetrated by HV Slug. 07768_ HV Slug penetrates Wall. 07770_ System corrupted: Component data lost. 07772_ Penetrated by HV Slug. 07772_ HV Slug penetrates Wall. 07772_ Penetrated by HV Slug. 07772_ HV Slug penetrates Wall. 07774_ Wall collapses. 07776_ Penetrated by HV Slug. 07776_ HV Slug penetrates Earth. 07776_ Penetrated by HV Slug. Map ----- +----------------------------------------------------+ | ?????????????????????????????????????????????????? | | ?????????????????????????????????????????????????? | | ?????????????????????????????????????????????????? | | ?????????????????????????????????????????????????? | | ?????????????????????????????????????????????????? | | ?????????????????????????????????????????????????? | | ?????????????????????????????????????????????????? | | ?????????????????????????????????????????????????? | | ?????????????????????????????????????????????????? | | ?????????????????????????????????????????????????? | | ?????????????????????????????????????????????????? | | ?????????????????????????????????????????????????? | | ?????????????????????????????????????????????????? | | ?????????????????????????????????????????????????# | | ?????????????????????????????????????????????????" | | ???####??????????????????????????????????????????" | | ??## #?????????????????????????????? ?????????#" | | ??# ????????????????????????????? ??????????#" | | ??# < ???????????????????????????# ???????????#" | | ??# ##????????????????????????# #???????????#" | | ??# ???????????????????????# #????????????## | | ??# #??????????????????????# #?????????????? | | ???# #?????????????????????# #???????????????? | | ???# ##????????????#####??# #????????????????? | | ????# #????????????#;#;### #?????????????????? | | ????# ![ #######??????# @ ;#??????????????????? | | ????# ! #""##?????# g ##??????????????????? | | ????## #?????# [ "#???????????????????? | | ?????##" ##???## = #????????????####???? | | ?????#"" #####" "#???????????? """??? | | ?????#### ##" " #????????????" """#?? | | ????????## #"" ###????????????" #?? | | ?????????#"## #?????????????"" #?? | | ?????????####### ##????????????"" "#?? | | ???????????????### "#???????????? ""??? | | ??????????????###" ####??????????" "???? | | ?????????????""""" #????????# #???? | | ??????????! "###"" #???### ###?# | | ?????????#! "#?##" ###X# #"### | | ?????????#! ##??#" """" | | ?????????# !""""""###???#"# % "" " | | ?????????#########??????#### | | ???????????????????????????## | | ????????????????????????????? % | | ?????????????????????????????## | | ???????????????????????????????### | | ?????????????????????????????????##" | | ??????????????????????????????????#""" | | ?????????????????????????????????##" | | ?????????????????????????????????#"" | +----------------------------------------------------+ Best States ------------- Heat Dissipation 50 Energy Generation 14 Energy Capacity 265 Matter Stores 436 Matter Capacity 600 Sight Range 16 Terrain Scan Range 16 Terrain Scan Density 10 Cloak Strength 5 Armor Coverage 300 Evasion (%) 40 Recoil Reduction 2 Trap Extractor Capacity 4 Item Schematics ----------------- Huge Storage Unit | -10/Materials | Hacked Robot Schematics ------------------ M-13 Machinist | -9/Materials | Hacked Fabricated ------------ Nothing Alien Tech Used ----------------- None Achievements -------------- None Challenges ------------ None Game ------ Seed BeamHelicalInverter Manual? 1 Play Time 00:45:14 Cumulative 497.5 hours Start 2024.08.17 @ 15:28:37 End 2024.08.17 @ 16:12:52 Sessions 3 Manual Loads 0 Difficulty Rogue Special Mode None Game No. 227 Rogue 227 Adventurer 0 Explorer 0 Win Type - Total 12 Types 9/0/1/1/0/0/0/1/0 Lore% 68 Gallery% 89 Achievement% 72 Wizard Run 0 Options --------- Layout 2 ASCII 0 Keyboard 1 Movement Vi Keybinds 0 Fullscreen 2 Font 32/SmallcapsGlow Map View 50x44 Zoom Use 0% Tactical HUD 1 Map Filters NONE Filters NONE Steam 0 RUN: ed2f4d0c-4c37-4b77-9933-b60e238d3d2c